[Event "Turkish Second League 2019"]
[Site "Konya"]
[Date "2019.07.25"]
[Round "5"]
[White "Demirbag, Alihan"]
[Black "Temizkan, Denizcan"]
[Result "0-1"]
[ECO "C50"]
[WhiteElo "2087"]
[BlackElo "2202"]
[Annotator "NA"]
[PlyCount "172"]
[EventDate "2019.07.22"]
[EventType "team-tourn"]
[EventCountry "TUR"]
[SourceTitle "playchess.com"]
[Source "ChessBase"]
[SourceQuality "1"]
[TimeControl "5400+30"]

1. e4 {[%emt 0:00:30]} e5 {[%emt 0:00:00]} 2. Nf3 {[%emt 0:00:30]} Nc6 {[%emt 0:00:00]} 3. Bc4 {[%emt 0:00:00]} Be7 {[%emt 0:00:30]} 4. d4 {[%emt 0:04:00]} d6 {[%emt 0:10:30]} 5. h3 {[%emt 0:03:30]} Nf6 {[%emt 0:02:30]} 6. Nc3 {[%emt 0:02:30]} O-O {[%emt 0:02:30]} 7. O-O {[%emt 0:00:30]} a6 {[%emt 0:08:30]} 8. a4 {[%emt 0:07:30]} Bd7 {[%emt 0:09:30]} 9. dxe5 {[%emt 0:14:30]} Nxe5 {[%emt 0:04:30]} 10. Nxe5 {[%emt 0:01:30]} dxe5 {[%emt 0:00:30]} 11. Qe2 {[%emt 0:19:30]} c6 {[%emt 0:03:30]} 12. Rd1 {[%emt 0:07:30]} b5 {[%emt 0:01:30]} 13. Bb3 {[%emt 0:00:30]} Qc7 {[%emt 0:07:30]} 14. Bg5 {[%emt 0:04:30]} Rfd8 {[%emt 0:14:30]} 15. Rd3 {[%emt 0:04:30]} h6 {[%emt 0:05:30]} 16. Bh4 {[%emt 0:01:30]} Be8 {[%emt 0:01:30]} 17. Rad1 {[%emt 0:02:30]} g5 {[%emt 0:05:30]} 18. Bg3 {[%emt 0:00:00]} Kg7 {[%emt 0:01:04]} 19. Rxd8 {[%emt 0:07:52]} Rxd8 {[%emt 0:00:06]} 20. Rd3 {[%emt 0:00:43]} Nd7 {[%emt 0:04:24]} 21. axb5 {[%emt 0:02:36]} axb5 {[%emt 0:00:30]} 22. Nd1 {[%emt 0:01:03]} Nc5 {[%emt 0:00:50]} 23. Rxd8 {[%emt 0:00:35]} Bxd8 {[%emt 0:00:03]} 24. Ne3 {[%emt 0:00:08]} Nxb3 {[%emt 0:03:58]} 25. Nf5+ {[%emt 0:00:37]} Kg6 {[%emt 0:01:00]} 26. cxb3 {[%emt 0:00:04]} Bd7 {[%emt 0:03:12]} 27. Qd3 {[%emt 0:01:48]} Bxf5 {[%emt 0:03:13]} 28. exf5+ {[%emt 0:00:30]} Kf6 {[%emt 0:00:30]} 29. f3 {[%emt 0:00:00]} Be7 {[%emt 0:00:00]} 30. Qe4 {[%emt 0:07:15]} Qd6 {[%emt 0:02:32]} 31. Bf2 {[%emt 0:00:08]} Qd1+ {[%emt 0:01:41]} 32. Kh2 {[%emt 0:00:15]} Qd5 {[%emt 0:00:57]} 33. Kh1 {[%emt 0:01:43]} Bd6 {[%emt 0:01:10]} 34. g4 {[%emt 0:01:34]} Ke7 {[%emt 0:01:39]} 35. Kg2 {[%emt 0:02:05]} Kd7 {[%emt 0:00:18]} 36. Qc2 {[%emt 0:00:44]} f6 {[%emt 0:00:44]} 37. Be3 {[%emt 0:01:08]} Bb4 {[%emt 0:00:19]} 38. Bf2 {[%emt 0:00:52]} Kd6 {[%emt 0:01:13]} 39. Be3 {[%emt 0:00:37]} Be1 {[%emt 0:00:45]} 40. Qe2 {[%emt 0:01:07]} Ba5 {[%emt 0:00:26]} 41. Qc2 {[%emt 0:00:42]} Bb4 {[%emt 0:00:01]} 42. Kf2 {[%emt 0:00:45]} Bc5 {[%emt 0:00:18]} 43. Qc3 {[%emt 0:00:37]} Bd4 {[%emt 0:01:20]} 44. Qb4+ {[%emt 0:00:30]} Qc5 {[%emt 0:00:19]} 45. Qd2 {[%emt 0:00:13]} Qd5 {[%emt 0:00:44]} 46. Qb4+ {[%emt 0:00:24]} Qc5 {[%emt 0:01:00]} 47. Qd2 {[%emt 0:00:02]} Kc7 {[%emt 0:00:11]} 48. Ke2 {[%emt 0:00:56]} Bxe3 {[%emt 0:00:30]} 49. Qxe3 {[%emt 0:00:44]} Qxe3+ {[%emt 0:00:35]} 50. Kxe3 {[%emt 0:00:30]} c5 {[%emt 0:00:30]} 51. Kd3 {[%emt 0:00:30]} Kc6 {[%emt 0:00:30]} 52. Kc3 {[%emt 0:00:30]} Kd5 {[%emt 0:00:30]} 53. Kd3 {[%emt 0:00:30]} b4 {[%emt 0:00:30]} 54. Ke3 {[%emt 0:00:30]} c4 {[%emt 0:00:30]} 55. Kd2 {[%emt 0:00:30]} Kd4 {[%emt 0:00:25]} 56. bxc4 {[%emt 0:00:39]} Kxc4 {[%emt 0:00:39]} 57. Kc2 {[%emt 0:00:01]} b3+ {[%emt 0:00:09]} 58. Kd2 {[%emt 0:00:37]} Kd4 {[%emt 0:00:30]} 59. Ke2 {[%emt 0:00:00]} e4 {[%emt 0:00:09]} 60. fxe4 {[%emt 0:00:06]} Kxe4 {[%emt 0:00:30]} 61. Kd2 {[%emt 0:00:00]} Kd4 {[%emt 0:01:03]} 62. Ke2 {[%emt 0:00:02]} Ke4 {[%emt 0:00:00]} 63. Kd2 {[%emt 0:00:01]} Kf3 {[%emt 0:00:00]} 64. Kc3 {[%emt 0:00:01]} Kg3 {[%emt 0:00:25]} 65. Kxb3 {[%emt 0:00:30]} Kxh3 {[%emt 0:00:00]} 66. Kc4 {[%emt 0:00:00]} Kxg4 {[%emt 0:00:05]} 67. b4 {[%emt 0:00:00]} h5 {[%emt 0:00:47]} 68. b5 {[%emt 0:00:01]} h4 {[%emt 0:00:30]} 69. b6 {[%emt 0:00:00]} h3 {[%emt 0:00:00]} 70. b7 {[%emt 0:00:00]} h2 {[%emt 0:00:00]} 71. b8=Q {[%emt 0:00:07]} h1=Q {[%emt 0:00:00]} 72. Kd3 {[%emt 0:00:01]} Qf3+ {[%emt 0:00:00]} 73. Kc2 {[%emt 0:00:11]} Qxf5+ {[%emt 0:00:31]} 74. Kd1 {[%emt 0:00:02]} Qd3+ {[%emt 0:00:00]} 75. Kc1 {[%emt 0:00:36]} f5 {[%emt 0:00:01]} 76. Qh2 {[%emt 0:00:02]} Qe3+ {[%emt 0:01:40]} 77. Kd1 {[%emt 0:00:44]} f4 {[%emt 0:00:08]} 78. Qh7 {[%emt 0:00:54]} f3 {[%emt 0:00:30]} 79. Qd7+ {[%emt 0:00:38]} Kg3 {[%emt 0:00:07]} 80. Qc7+ {[%emt 0:00:20]} Qf4 {[%emt 0:00:10]} 81. Qc3 {[%emt 0:00:30]} Kg2 {[%emt 0:00:23]} 82. Kc2 {[%emt 0:01:38]} f2 {[%emt 0:00:49]} 83. Qc6+ {[%emt 0:00:02]} Qf3 {[%emt 0:00:11]} 84. Qc5 {[%emt 0:00:05]} g4 {[%emt 0:00:00]} 85. Kd2 {[%emt 0:00:05]} f1=N+ {[%emt 0:00:38]} 86. Ke1 {[%emt 0:00:14]} Qe3+ {[%emt 0:00:35]} 0-1

[Event "Turkish Second League 2019"]
[Site "Konya"]
[Date "2019.07.25"]
[Round "5"]
[White "Buke, Furkan"]
[Black "Oztekin, Kerem Can"]
[Result "1-0"]
[ECO "B70"]
[WhiteElo "1959"]
[BlackElo "1933"]
[Annotator "NA"]
[PlyCount "105"]
[EventDate "2019.07.22"]
[EventType "team-tourn"]
[EventCountry "TUR"]
[SourceTitle "playchess.com"]
[Source "ChessBase"]
[SourceQuality "1"]
[TimeControl "5400+30"]

1. e4 {[%emt 0:00:30]} c5 {[%emt 0:00:30]} 2. Nf3 {[%emt 0:00:30]} g6 {[%emt 0:00:00]} 3. d4 {[%emt 0:00:00]} cxd4 {[%emt 0:00:00]} 4. Nxd4 {[%emt 0:01:00]} Bg7 {[%emt 0:00:30]} 5. Nc3 {[%emt 0:01:30]} Nc6 {[%emt 0:00:30]} 6. Nde2 {[%emt 0:00:30]} d6 {[%emt 0:04:30]} 7. g3 {[%emt 0:00:30]} Nf6 {[%emt 0:15:30]} 8. Bg2 {[%emt 0:00:30]} O-O {[%emt 0:00:30]} 9. O-O {[%emt 0:00:30]} Bd7 {[%emt 0:04:30]} 10. h3 {[%emt 0:00:30]} Ne5 {[%emt 0:02:30]} 11. Nd4 {[%emt 0:11:30]} Rc8 {[%emt 0:04:30]} 12. Nd5 {[%emt 0:02:30]} Bc6 {[%emt 0:06:30]} 13. b3 {[%emt 0:05:30]} b5 {[%emt 0:08:30]} 14. Bb2 {[%emt 0:03:30]} e6 {[%emt 0:17:30]} 15. Nxf6+ {[%emt 0:04:30]} Bxf6 {[%emt 0:08:30]} 16. f4 {[%emt 0:01:30]} Nd7 {[%emt 0:06:38]} 17. Nxc6 {[%emt 0:01:30]} Qb6+ {[%emt 0:04:05]} 18. Nd4 {[%emt 0:21:30]} e5 {[%emt 0:00:37]} 19. c3 {[%emt 0:00:00]} b4 {[%emt 0:00:47]} 20. c4 {[%emt 0:03:00]} exd4 {[%emt 0:01:18]} 21. Kh2 {[%emt 0:00:30]} Rfe8 {[%emt 0:00:39]} 22. Qd2 {[%emt 0:04:30]} Nc5 {[%emt 0:01:16]} 23. Rae1 {[%emt 0:00:30]} a5 {[%emt 0:05:48]} 24. Qd1 {[%emt 0:08:30]} Na6 {[%emt 0:05:17]} 25. Qf3 {[%emt 0:06:30]} Rc7 {[%emt 0:00:41]} 26. Qf2 {[%emt 0:01:30]} Nb8 {[%emt 0:00:29]} 27. e5 {[%emt 0:00:30]} dxe5 {[%emt 0:00:22]} 28. Bxd4 {[%emt 0:00:49]} exd4 {[%emt 0:00:44]} 29. Rxe8+ {[%emt 0:00:30]} Kg7 {[%emt 0:00:00]} 30. Qf3 {[%emt 0:02:04]} Nc6 {[%emt 0:00:06]} 31. Qd5 {[%emt 0:00:27]} Ne7 {[%emt 0:01:22]} 32. Qa8 {[%emt 0:01:21]} d3 {[%emt 0:00:41]} 33. Rb8 {[%emt 0:01:54]} Qe3 {[%emt 0:00:34]} 34. Qe4 {[%emt 0:01:52]} Qxe4 {[%emt 0:00:25]} 35. Bxe4 {[%emt 0:00:01]} d2 {[%emt 0:00:00]} 36. Rd8 {[%emt 0:01:02]} Bc3 {[%emt 0:00:24]} 37. Rd1 {[%emt 0:01:15]} Nc6 {[%emt 0:01:10]} 38. R1xd2 {[%emt 0:03:12]} Bxd2 {[%emt 0:00:04]} 39. Rxd2 {[%emt 0:00:10]} a4 {[%emt 0:00:38]} 40. bxa4 {[%emt 0:06:30]} Na5 {[%emt 0:00:39]} 41. Bd5 {[%emt 0:00:11]} Kf6 {[%emt 0:00:38]} 42. Rb2 {[%emt 0:00:56]} Re7 {[%emt 0:00:08]} 43. Kg2 {[%emt 0:00:17]} Re3 {[%emt 0:00:12]} 44. Rxb4 {[%emt 0:00:15]} Re2+ {[%emt 0:00:24]} 45. Kf3 {[%emt 0:00:31]} Rxa2 {[%emt 0:00:03]} 46. g4 {[%emt 0:01:07]} Ra3+ {[%emt 0:00:17]} 47. Ke4 {[%emt 0:00:16]} h6 {[%emt 0:01:15]} 48. h4 {[%emt 0:00:24]} Rg3 {[%emt 0:01:04]} 49. g5+ {[%emt 0:00:16]} hxg5 {[%emt 0:00:43]} 50. hxg5+ {[%emt 0:00:02]} Ke7 {[%emt 0:00:00]} 51. c5 {[%emt 0:00:22]} f5+ {[%emt 0:00:31]} 52. gxf6+ {[%emt 0:00:06]} Kxf6 {[%emt 0:00:00]} 53. Rb5 {[%emt 0:00:07]} 1-0

[Event "Turkish Second League 2019"]
[Site "Konya"]
[Date "2019.07.25"]
[Round "5"]
[White "Yildizak, Goksel"]
[Black "Buker, Muhittin"]
[Result "1/2-1/2"]
[ECO "E17"]
[WhiteElo "1950"]
[BlackElo "2016"]
[Annotator "NA"]
[PlyCount "97"]
[EventDate "2019.07.22"]
[EventType "team-tourn"]
[EventCountry "TUR"]
[SourceTitle "playchess.com"]
[Source "ChessBase"]
[SourceQuality "1"]
[TimeControl "5400+30"]

1. d4 {[%emt 0:00:30]} Nf6 {[%emt 0:00:30]} 2. Nf3 {[%emt 0:00:00]} e6 {[%emt 0:00:00]} 3. g3 {[%emt 0:00:00]} d5 {[%emt 0:00:00]} 4. Bg2 {[%emt 0:00:30]} Be7 {[%emt 0:00:30]} 5. O-O {[%emt 0:00:00]} O-O {[%emt 0:00:00]} 6. b3 {[%emt 0:00:00]} Nbd7 {[%emt 0:07:00]} 7. Nbd2 {[%emt 0:00:30]} b6 {[%emt 0:00:30]} 8. c4 {[%emt 0:00:30]} Bb7 {[%emt 0:00:30]} 9. Bb2 {[%emt 0:00:30]} c5 {[%emt 0:07:30]} 10. e3 {[%emt 0:05:30]} cxd4 {[%emt 0:03:30]} 11. exd4 {[%emt 0:00:30]} Rc8 {[%emt 0:00:30]} 12. a3 {[%emt 0:03:30]} Rc7 {[%emt 0:00:30]} 13. Ne5 {[%emt 0:02:30]} Qa8 {[%emt 0:00:30]} 14. Rc1 {[%emt 0:03:30]} Rfc8 {[%emt 0:02:30]} 15. Re1 {[%emt 0:03:30]} dxc4 {[%emt 0:12:30]} 16. Bxb7 {[%emt 0:02:30]} Qxb7 {[%emt 0:00:30]} 17. bxc4 {[%emt 0:03:30]} Nxe5 {[%emt 0:04:30]} 18. Rxe5 {[%emt 0:03:30]} Nd7 {[%emt 0:03:30]} 19. Re1 {[%emt 0:03:30]} Bg5 {[%emt 0:04:30]} 20. f4 {[%emt 0:01:30]} Bf6 {[%emt 0:00:30]} 21. Ne4 {[%emt 0:00:30]} Be7 {[%emt 0:04:30]} 22. Qe2 {[%emt 0:11:30]} Qa6 {[%emt 0:01:30]} 23. Nd2 {[%emt 0:01:30]} Bf6 {[%emt 0:01:30]} 24. Ne4 {[%emt 0:05:30]} Be7 {[%emt 0:04:30]} 25. Nd2 {[%emt 0:00:00]} Rc6 {[%emt 0:04:30]} 26. Kg2 {[%emt 0:04:00]} Bf8 {[%emt 0:07:30]} 27. Qf3 {[%emt 0:06:30]} Qa5 {[%emt 0:01:30]} 28. Re2 {[%emt 0:05:30]} Nf6 {[%emt 0:02:30]} 29. Rce1 {[%emt 0:02:30]} b5 {[%emt 0:06:56]} 30. c5 {[%emt 0:03:30]} Qd8 {[%emt 0:00:52]} 31. Ne4 {[%emt 0:01:30]} Nxe4 {[%emt 0:02:05]} 32. Qxe4 {[%emt 0:02:30]} g6 {[%emt 0:00:22]} 33. g4 {[%emt 0:03:30]} R6c7 {[%emt 0:03:33]} 34. f5 {[%emt 0:04:25]} exf5 {[%emt 0:04:15]} 35. gxf5 {[%emt 0:00:48]} Qg5+ {[%emt 0:00:42]} 36. Kh1 {[%emt 0:00:00]} Re7 {[%emt 0:00:36]} 37. Qf3 {[%emt 0:00:53]} Rce8 {[%emt 0:00:33]} 38. Rxe7 {[%emt 0:06:00]} Rxe7 {[%emt 0:00:06]} 39. Rxe7 {[%emt 0:01:00]} Qxe7 {[%emt 0:00:15]} 40. fxg6 {[%emt 0:01:38]} Qe1+ {[%emt 0:00:30]} 41. Kg2 {[%emt 0:00:00]} hxg6 {[%emt 0:00:02]} 42. Bc3 {[%emt 0:05:28]} Qc1 {[%emt 0:00:03]} 43. c6 {[%emt 0:01:34]} Qc2+ {[%emt 0:01:58]} 44. Kf1 {[%emt 0:01:18]} Bd6 {[%emt 0:01:25]} 45. d5 {[%emt 0:00:18]} Qc1+ {[%emt 0:00:38]} 46. Kg2 {[%emt 0:01:16]} Qc2+ {[%emt 0:00:06]} 47. Kf1 {[%emt 0:00:00]} Qc1+ {[%emt 0:03:36]} 48. Kg2 {[%emt 0:00:01]} Qc2+ {[%emt 0:01:19]} 49. Kf1 {[%emt 0:00:10]} 1/2-1/2

[Event "Turkish Second League 2019"]
[Site "Konya"]
[Date "2019.07.25"]
[Round "5"]
[White "Demirag, Batuhan"]
[Black "Yurtoglu, Osman Talha"]
[Result "0-1"]
[ECO "E60"]
[WhiteElo "1939"]
[BlackElo "1923"]
[Annotator "NA"]
[PlyCount "86"]
[EventDate "2019.07.22"]
[EventType "team-tourn"]
[EventCountry "TUR"]
[SourceTitle "playchess.com"]
[Source "ChessBase"]
[SourceQuality "1"]
[TimeControl "5400+30"]

1. Nf3 {[%emt 0:00:30]} Nf6 {[%emt 0:00:30]} 2. c4 {[%emt 0:00:00]} g6 {[%emt 0:01:30]} 3. b3 {[%emt 0:00:00]} Bg7 {[%emt 0:00:30]} 4. Bb2 {[%emt 0:00:00]} d6 {[%emt 0:00:00]} 5. d4 {[%emt 0:00:00]} O-O {[%emt 0:00:00]} 6. g3 {[%emt 0:00:30]} Nbd7 {[%emt 0:00:00]} 7. Bg2 {[%emt 0:00:00]} e5 {[%emt 0:01:00]} 8. dxe5 {[%emt 0:00:00]} dxe5 {[%emt 0:00:00]} 9. O-O {[%emt 0:02:30]} e4 {[%emt 0:01:00]} 10. Ng5 {[%emt 0:01:30]} e3 {[%emt 0:11:30]} 11. f3 {[%emt 0:06:30]} h6 {[%emt 0:04:30]} 12. Nh3 {[%emt 0:00:30]} Qe7 {[%emt 0:06:30]} 13. Nc3 {[%emt 0:01:30]} g5 {[%emt 0:06:30]} 14. Nd5 {[%emt 0:08:30]} Nxd5 {[%emt 0:01:30]} 15. Bxg7 {[%emt 0:00:30]} Kxg7 {[%emt 0:00:00]} 16. Qxd5 {[%emt 0:00:30]} Nf6 {[%emt 0:00:00]} 17. Qa5 {[%emt 0:01:30]} b6 {[%emt 0:24:30]} 18. Qc3 {[%emt 0:01:30]} Bb7 {[%emt 0:00:30]} 19. Rfd1 {[%emt 0:07:30]} Rad8 {[%emt 0:00:30]} 20. Rac1 {[%emt 0:06:30]} c5 {[%emt 0:07:30]} 21. Kf1 {[%emt 0:01:30]} Kg8 {[%emt 0:01:30]} 22. Ke1 {[%emt 0:05:30]} Rfe8 {[%emt 0:09:30]} 23. Rxd8 {[%emt 0:01:30]} Rxd8 {[%emt 0:00:30]} 24. Rd1 {[%emt 0:00:30]} Rxd1+ {[%emt 0:03:15]} 25. Kxd1 {[%emt 0:00:00]} Ng4 {[%emt 0:03:25]} 26. fxg4 {[%emt 0:06:00]} Bxg2 {[%emt 0:00:07]} 27. Ng1 {[%emt 0:00:00]} Qe4 {[%emt 0:00:44]} 28. Kc1 {[%emt 0:09:00]} Kf8 {[%emt 0:02:08]} 29. Kb2 {[%emt 0:23:22]} Ke7 {[%emt 0:00:03]} 30. a4 {[%emt 0:07:44]} a5 {[%emt 0:00:24]} 31. h4 {[%emt 0:03:28]} Ke6 {[%emt 0:04:07]} 32. Ka3 {[%emt 0:05:36]} Qd4 {[%emt 0:07:37]} 33. Qxd4 {[%emt 0:00:08]} cxd4 {[%emt 0:00:00]} 34. hxg5 {[%emt 0:00:59]} hxg5 {[%emt 0:00:00]} 35. b4 {[%emt 0:00:00]} Kd6 {[%emt 0:00:26]} 36. Kb3 {[%emt 0:00:46]} Kc6 {[%emt 0:01:27]} 37. Ka3 {[%emt 0:00:39]} f6 {[%emt 0:00:52]} 38. Kb3 {[%emt 0:00:26]} Be4 {[%emt 0:00:46]} 39. Ka3 {[%emt 0:00:31]} axb4+ {[%emt 0:00:50]} 40. Kxb4 {[%emt 0:00:30]} Bg2 {[%emt 0:00:00]} 41. Ka3 {[%emt 0:00:38]} Kc5 {[%emt 0:00:00]} 42. Kb3 {[%emt 0:00:00]} Bc6 {[%emt 0:00:34]} 43. Kc2 {[%emt 0:02:11]} Kxc4 {[%emt 0:00:09]} 0-1

[Event "Turkish Second League 2019"]
[Site "Konya"]
[Date "2019.07.25"]
[Round "5"]
[White "Degirmenci, Yagiz"]
[Black "Ozsakallioglu, Akin"]
[Result "0-1"]
[ECO "E91"]
[WhiteElo "1923"]
[BlackElo "1901"]
[Annotator "NA"]
[PlyCount "138"]
[EventDate "2019.07.22"]
[EventType "team-tourn"]
[EventCountry "TUR"]
[SourceTitle "playchess.com"]
[Source "ChessBase"]
[SourceQuality "1"]
[TimeControl "5400+30"]

1. d4 {[%emt 0:00:30]} Nf6 {[%emt 0:00:30]} 2. c4 {[%emt 0:01:30]} g6 {[%emt 0:00:30]} 3. Nc3 {[%emt 0:00:00]} Bg7 {[%emt 0:00:00]} 4. e4 {[%emt 0:00:00]} d6 {[%emt 0:00:00]} 5. Nf3 {[%emt 0:00:00]} Bg4 {[%emt 0:00:30]} 6. Be2 {[%emt 0:01:00]} O-O {[%emt 0:00:30]} 7. h3 {[%emt 0:13:30]} Bxf3 {[%emt 0:01:30]} 8. Bxf3 {[%emt 0:00:30]} Nfd7 {[%emt 0:00:30]} 9. O-O {[%emt 0:02:30]} Nc6 {[%emt 0:00:00]} 10. Be3 {[%emt 0:03:30]} e5 {[%emt 0:00:00]} 11. d5 {[%emt 0:00:30]} Nd4 {[%emt 0:01:30]} 12. Bxd4 {[%emt 0:01:30]} exd4 {[%emt 0:00:00]} 13. Ne2 {[%emt 0:00:30]} d3 {[%emt 0:02:00]} 14. Qxd3 {[%emt 0:02:30]} Bxb2 {[%emt 0:00:30]} 15. Rab1 {[%emt 0:00:00]} Be5 {[%emt 0:00:30]} 16. g3 {[%emt 0:06:00]} Nc5 {[%emt 0:01:30]} 17. Qc2 {[%emt 0:03:30]} Re8 {[%emt 0:10:30]} 18. Bg2 {[%emt 0:00:30]} b6 {[%emt 0:04:30]} 19. Nc1 {[%emt 0:08:30]} Qd7 {[%emt 0:02:30]} 20. Nd3 {[%emt 0:01:30]} Qa4 {[%emt 0:00:00]} 21. Qxa4 {[%emt 0:01:30]} Nxa4 {[%emt 0:00:00]} 22. Nxe5 {[%emt 0:01:30]} Rxe5 {[%emt 0:01:30]} 23. f4 {[%emt 0:16:30]} Re7 {[%emt 0:00:30]} 24. e5 {[%emt 0:02:30]} Rae8 {[%emt 0:00:30]} 25. e6 {[%emt 0:01:30]} Nc5 {[%emt 0:02:30]} 26. Rbe1 {[%emt 0:03:30]} Kg7 {[%emt 0:02:30]} 27. f5 {[%emt 0:09:11]} gxf5 {[%emt 0:00:00]} 28. exf7 {[%emt 0:01:53]} Kxf7 {[%emt 0:01:00]} 29. Rxf5+ {[%emt 0:00:36]} Kg6 {[%emt 0:03:30]} 30. Ref1 {[%emt 0:00:07]} Nd7 {[%emt 0:00:30]} 31. h4 {[%emt 0:01:40]} Re1 {[%emt 0:01:30]} 32. h5+ {[%emt 0:00:39]} Kh6 {[%emt 0:00:30]} 33. Rf7 {[%emt 0:00:42]} R8e7 {[%emt 0:01:30]} 34. Rxe7 {[%emt 0:06:00]} Rxe7 {[%emt 0:00:30]} 35. Bf3 {[%emt 0:00:12]} Re3 {[%emt 0:02:30]} 36. Kf2 {[%emt 0:05:49]} Ra3 {[%emt 0:00:30]} 37. g4 {[%emt 0:02:56]} Ne5 {[%emt 0:06:30]} 38. Be2 {[%emt 0:00:18]} Kg7 {[%emt 0:05:30]} 39. g5 {[%emt 0:00:40]} Nf7 {[%emt 0:01:30]} 40. Rg1 {[%emt 0:00:45]} Ne5 {[%emt 0:00:30]} 41. Ra1 {[%emt 0:02:07]} Rc3 {[%emt 0:00:00]} 42. a4 {[%emt 0:00:44]} a5 {[%emt 0:00:00]} 43. Ra2 {[%emt 0:00:58]} Nf7 {[%emt 0:00:30]} 44. g6 {[%emt 0:00:32]} hxg6 {[%emt 0:00:30]} 45. hxg6 {[%emt 0:00:30]} Ne5 {[%emt 0:00:00]} 46. Ra1 {[%emt 0:00:36]} Nxc4 {[%emt 0:01:00]} 47. Bxc4 {[%emt 0:00:07]} Rxc4 {[%emt 0:00:00]} 48. Ke3 {[%emt 0:00:16]} Kxg6 {[%emt 0:00:00]} 49. Kd3 {[%emt 0:00:12]} Rb4 {[%emt 0:00:30]} 50. Rc1 {[%emt 0:01:27]} Kf6 {[%emt 0:00:30]} 51. Rxc7 {[%emt 0:01:21]} Ke5 {[%emt 0:00:00]} 52. Rc4 {[%emt 0:00:00]} Kxd5 {[%emt 0:00:00]} 53. Rc1 {[%emt 0:01:06]} Rxa4 {[%emt 0:00:30]} 54. Rh1 {[%emt 0:00:10]} Ra3+ {[%emt 0:00:30]} 55. Kc2 {[%emt 0:00:00]} Rg3 {[%emt 0:00:00]} 56. Rh5+ {[%emt 0:00:00]} Kc4 {[%emt 0:00:00]} 57. Rh4+ {[%emt 0:00:00]} Kc5 {[%emt 0:00:00]} 58. Rh8 {[%emt 0:00:15]} b5 {[%emt 0:00:00]} 59. Kb2 {[%emt 0:00:51]} a4 {[%emt 0:00:30]} 60. Ka2 {[%emt 0:00:00]} d5 {[%emt 0:00:30]} 61. Rc8+ {[%emt 0:00:19]} Kb4 {[%emt 0:00:00]} 62. Rc2 {[%emt 0:00:00]} d4 {[%emt 0:00:00]} 63. Rb2+ {[%emt 0:00:00]} Rb3 {[%emt 0:00:30]} 64. Rh2 {[%emt 0:00:46]} d3 {[%emt 0:00:00]} 65. Rh8 {[%emt 0:00:21]} Kc3 {[%emt 0:00:00]} 66. Rc8+ {[%emt 0:00:43]} Kd2 {[%emt 0:00:30]} 67. Rh8 {[%emt 0:00:10]} Kc2 {[%emt 0:00:00]} 68. Rh1 {[%emt 0:01:29]} d2 {[%emt 0:01:00]} 69. Rh2 {[%emt 0:00:10]} Rd3 {[%emt 0:00:30]} 0-1

[Event "Turkish Second League 2019"]
[Site "Konya"]
[Date "2019.07.25"]
[Round "5"]
[White "Can, Furkan"]
[Black "Ozdemir, Serhan Berat"]
[Result "1-0"]
[ECO "D02"]
[WhiteElo "1900"]
[BlackElo "1985"]
[Annotator "NA"]
[PlyCount "93"]
[EventDate "2019.07.22"]
[EventType "team-tourn"]
[EventCountry "TUR"]
[SourceTitle "playchess.com"]
[Source "ChessBase"]
[SourceQuality "1"]
[TimeControl "5400+30"]

1. d4 {[%emt 0:00:30]} Nf6 {[%emt 0:00:30]} 2. Nf3 {[%emt 0:00:30]} g6 {[%emt 0:00:00]} 3. Nbd2 {[%emt 0:00:30]} d5 {[%emt 0:00:00]} 4. e3 {[%emt 0:00:00]} Bg7 {[%emt 0:00:30]} 5. b4 {[%emt 0:00:00]} O-O {[%emt 0:01:30]} 6. c4 {[%emt 0:00:00]} dxc4 {[%emt 0:08:30]} 7. Bxc4 {[%emt 0:09:00]} Nbd7 {[%emt 0:00:30]} 8. Bb2 {[%emt 0:02:30]} c6 {[%emt 0:01:30]} 9. a4 {[%emt 0:08:30]} Nb6 {[%emt 0:03:30]} 10. Be2 {[%emt 0:02:30]} Bf5 {[%emt 0:02:30]} 11. O-O {[%emt 0:02:30]} Nbd5 {[%emt 0:12:30]} 12. b5 {[%emt 0:04:30]} Rc8 {[%emt 0:06:30]} 13. Qb3 {[%emt 0:01:30]} Be6 {[%emt 0:08:30]} 14. Qa3 {[%emt 0:04:30]} Qd6 {[%emt 0:08:30]} 15. Rfc1 {[%emt 0:04:30]} Qxa3 {[%emt 0:01:30]} 16. Bxa3 {[%emt 0:00:30]} cxb5 {[%emt 0:00:00]} 17. axb5 {[%emt 0:00:00]} Bh6 {[%emt 0:09:00]} 18. h3 {[%emt 0:08:00]} Rxc1+ {[%emt 0:08:30]} 19. Rxc1 {[%emt 0:00:30]} Rc8 {[%emt 0:00:00]} 20. Rxc8+ {[%emt 0:01:30]} Bxc8 {[%emt 0:00:00]} 21. Bc4 {[%emt 0:02:30]} Kf8 {[%emt 0:02:30]} 22. g4 {[%emt 0:00:30]} Nxe3 {[%emt 0:11:06]} 23. fxe3 {[%emt 0:01:30]} Bxe3+ {[%emt 0:00:01]} 24. Kg2 {[%emt 0:03:30]} a6 {[%emt 0:00:22]} 25. bxa6 {[%emt 0:07:30]} bxa6 {[%emt 0:00:30]} 26. Nb3 {[%emt 0:00:30]} Bb7 {[%emt 0:01:55]} 27. Nc5 {[%emt 0:01:30]} Ba8 {[%emt 0:02:15]} 28. Bb2 {[%emt 0:04:30]} h5 {[%emt 0:01:13]} 29. Kg3 {[%emt 0:01:30]} hxg4 {[%emt 0:00:05]} 30. hxg4 {[%emt 0:00:30]} g5 {[%emt 0:00:05]} 31. Ne5 {[%emt 0:01:30]} e6 {[%emt 0:03:20]} 32. Bxa6 {[%emt 0:01:30]} Bf4+ {[%emt 0:01:38]} 33. Kh3 {[%emt 0:00:30]} Kg7 {[%emt 0:01:25]} 34. Bb7 {[%emt 0:02:30]} Bxb7 {[%emt 0:00:30]} 35. Nxb7 {[%emt 0:00:00]} Ne4 {[%emt 0:00:00]} 36. Kg2 {[%emt 0:05:00]} f6 {[%emt 0:01:02]} 37. Nd3 {[%emt 0:00:30]} Bc7 {[%emt 0:04:50]} 38. Nbc5 {[%emt 0:01:30]} Nxc5 {[%emt 0:01:05]} 39. dxc5 {[%emt 0:00:30]} Kf7 {[%emt 0:00:07]} 40. Kf3 {[%emt 0:00:32]} f5 {[%emt 0:01:05]} 41. Be5 {[%emt 0:01:10]} Ba5 {[%emt 0:00:14]} 42. c6 {[%emt 0:00:21]} Ke7 {[%emt 0:00:46]} 43. Nc5 {[%emt 0:00:10]} Bb6 {[%emt 0:00:23]} 44. Nb7 {[%emt 0:00:40]} Ba7 {[%emt 0:01:02]} 45. Bf6+ {[%emt 0:00:47]} Kxf6 {[%emt 0:00:56]} 46. c7 {[%emt 0:00:30]} fxg4+ {[%emt 0:00:00]} 47. Ke4 {[%emt 0:00:12]} 1-0